[Event "FIDE WYCC Girls U18 2023"]
[Site "Montesilvano"]
[Date "2023.11.15"]
[Round "3.16"]
[White "Trifoi, Mihaela-Ioana"]
[Black "Soares, Sara Joana De Moura "]
[Result "1-0"]
[ECO "C02"]
[WhiteElo "2021"]
[BlackElo "1772"]
[Annotator "NA"]
[PlyCount "81"]
[EventDate "2023.11.13"]
[EventType "swiss"]
[EventCountry "ITA"]
[SourceTitle "playchess.com"]
[Source "ChessBase"]
[SourceQuality "1"]
[TimeControl "40/5400+30:1800+30"]

1. e4 {[%emt 0:00:04]} e6 {[%emt 0:00:32]} 2. d4 {[%emt 0:00:09]} d5 {[%emt 0:00:15]} 3. e5 {[%emt 0:00:07]} c5 {[%emt 0:00:11]} 4. c3 {[%emt 0:00:06]} Nc6 {[%emt 0:00:16]} 5. Nf3 {[%emt 0:00:07]} Qb6 {[%emt 0:00:31]} 6. a3 {[%emt 0:00:08]} f6 {[%emt 0:00:45]} 7. Bd3 {[%emt 0:00:44]} fxe5 {[%emt 0:00:38]} 8. dxe5 {[%emt 0:00:59]} g6 {[%emt 0:02:49]} 9. O-O {[%emt 0:00:42]} Bg7 {[%emt 0:04:47]} 10. Re1 {[%emt 0:02:06]} Nh6 {[%emt 0:05:12]} 11. c4 {[%emt 0:18:54]} d4 {[%emt 0:18:53]} 12. Qc2 {[%emt 0:00:43]} Qc7 {[%emt 0:09:13]} 13. h4 {[%emt 0:07:23]} Nf7 {[%emt 0:24:12]} 14. Bf4 {[%emt 0:10:31]} b6 {[%emt 0:17:15]} 15. Qe2 {[%emt 0:02:05]} Bb7 {[%emt 0:01:24]} 16. Nbd2 {[%emt 0:00:23]} Ne7 {[%emt 0:06:52]} 17. Ne4 {[%emt 0:03:15]} Bxe4 {[%emt 0:00:05]} 18. Qxe4 {[%emt 0:00:32]} Rc8 {[%emt 0:01:52]} 19. b4 {[%emt 0:01:02]} Nd8 {[%emt 0:02:04]} 20. Bg5 {[%emt 0:03:18]} Nf5 {[%emt 0:01:22]} 21. g4 {[%emt 0:01:19]} Ne7 {[%emt 0:00:01]} 22. Bf6 {[%emt 0:00:39]} Nec6 {[%emt 0:01:06]} 23. b5 {[%emt 0:00:46]} Nb8 {[%emt 0:00:18]} 24. Ng5 {[%emt 0:00:55]} Qd7 {[%emt 0:01:14]} 25. h5 {[%emt 0:01:30]} gxh5 {[%emt 0:00:35]} 26. Nxh7 {[%emt 0:00:17]} hxg4 {[%emt 0:00:37]} 27. Qg6+ {[%emt 0:00:16]} Qf7 {[%emt 0:00:24]} 28. Bxg7 {[%emt 0:00:39]} Rxh7 {[%emt 0:00:32]} 29. Qxh7 {[%emt 0:00:26]} Kd7 {[%emt 0:00:29]} 30. Bf6 {[%emt 0:02:47]} Qxh7 {[%emt 0:00:33]} 31. Bxh7 {[%emt 0:00:06]} Nf7 {[%emt 0:00:05]} 32. Re4 {[%emt 0:00:32]} Nh6 {[%emt 0:00:34]} 33. Kg2 {[%emt 0:00:22]} a6 {[%emt 0:00:24]} 34. Rh1 {[%emt 0:00:51]} axb5 {[%emt 0:00:25]} 35. Rxh6 {[%emt 0:00:12]} bxc4 {[%emt 0:00:03]} 36. Rxg4 {[%emt 0:00:21]} b5 {[%emt 0:00:20]} 37. Rg7+ {[%emt 0:01:20]} Kc6 {[%emt 0:00:00]} 38. Be4+ {[%emt 0:00:09]} Kb6 {[%emt 0:00:54]} 39. Bd8+ {[%emt 0:00:14]} Rxd8 {[%emt 0:00:26]} 40. Rxe6+ {[%emt 0:00:00]} Ka5 {[%emt 0:00:00]} 41. Ra7+ {[%emt 0:00:12]} 1-0

[Event "FIDE WYCC Girls U18 2023"]
[Site "Montesilvano"]
[Date "2023.11.15"]
[Round "3.17"]
[White "Dakic, Marta"]
[Black "O'Carroll, Om"]
[Result "1-0"]
[ECO "B56"]
[WhiteElo "2013"]
[BlackElo "1737"]
[Annotator "NA"]
[PlyCount "101"]
[EventDate "2023.11.13"]
[EventType "swiss"]
[EventCountry "ITA"]
[SourceTitle "playchess.com"]
[Source "ChessBase"]
[SourceQuality "1"]
[TimeControl "40/5400+30:1800+30"]

1. e4 {[%emt 0:00:07]} c5 {[%emt 0:00:04]} 2. Nf3 {[%emt 0:00:13]} d6 {[%emt 0:00:05]} 3. d4 {[%emt 0:00:38]} cxd4 {[%emt 0:00:05]} 4. Nxd4 {[%emt 0:00:07]} Nf6 {[%emt 0:00:06]} 5. Nc3 {[%emt 0:00:12]} Nc6 {[%emt 0:00:06]} 6. f3 {[%emt 0:00:35]} e5 {[%emt 0:00:21]} 7. Nb3 {[%emt 0:00:18]} Be6 {[%emt 0:00:23]} 8. Nd5 {[%emt 0:00:16]} Be7 {[%emt 0:02:10]} 9. Be3 {[%emt 0:01:16]} O-O {[%emt 0:01:42]} 10. c4 {[%emt 0:01:10]} a5 {[%emt 0:04:34]} 11. Qd2 {[%emt 0:00:35]} a4 {[%emt 0:11:06]} 12. Nc1 {[%emt 0:00:42]} Bxd5 {[%emt 0:03:52]} 13. cxd5 {[%emt 0:14:11]} Nb8 {[%emt 0:03:02]} 14. Qb4 {[%emt 0:07:44]} Qa5 {[%emt 0:04:56]} 15. Bd2 {[%emt 0:03:46]} Qxb4 {[%emt 0:01:46]} 16. Bxb4 {[%emt 0:00:06]} Na6 {[%emt 0:02:10]} 17. Ba3 {[%emt 0:00:57]} Nd7 {[%emt 0:03:17]} 18. Bb5 {[%emt 0:05:41]} Nac5 {[%emt 0:02:05]} 19. Bxd7 {[%emt 0:13:02]} Nxd7 {[%emt 0:00:07]} 20. Nd3 {[%emt 0:00:03]} f5 {[%emt 0:14:25]} 21. Rc1 {[%emt 0:10:50]} fxe4 {[%emt 0:06:19]} 22. fxe4 {[%emt 0:00:07]} Rac8 {[%emt 0:05:36]} 23. Ke2 {[%emt 0:05:50]} b6 {[%emt 0:04:36]} 24. Rxc8 {[%emt 0:09:19]} Rxc8 {[%emt 0:00:14]} 25. Rc1 {[%emt 0:05:28]} Rxc1 {[%emt 0:07:48]} 26. Nxc1 {[%emt 0:00:05]} Kf7 {[%emt 0:02:23]} 27. Nd3 {[%emt 0:01:12]} Nf6 {[%emt 0:02:30]} 28. Nf2 {[%emt 0:03:02]} Ne8 {[%emt 0:04:32]} 29. Kd3 {[%emt 0:01:33]} Nc7 {[%emt 0:01:37]} 30. Kc4 {[%emt 0:02:18]} b5+ {[%emt 0:00:38]} 31. Kb4 {[%emt 0:00:05]} Bg5 {[%emt 0:01:15]} 32. Ka5 {[%emt 0:00:59]} Ke7 {[%emt 0:01:11]} 33. Nd1 {[%emt 0:03:14]} Kd7 {[%emt 0:01:42]} 34. Nc3 {[%emt 0:00:43]} Bd2 {[%emt 0:09:07]} 35. Bb4 {[%emt 0:00:28]} Bxc3 {[%emt 0:01:32]} 36. bxc3 {[%emt 0:01:12]} Ne8 {[%emt 0:00:33]} 37. Kxb5 {[%emt 0:00:14]} Nf6 {[%emt 0:00:14]} 38. Kxa4 {[%emt 0:00:10]} Nxe4 {[%emt 0:00:06]} 39. Kb3 {[%emt 0:06:26]} Nd2+ {[%emt 0:00:25]} 40. Kc2 {[%emt 0:00:00]} Nf1 {[%emt 0:00:00]} 41. Kd3 {[%emt 0:03:47]} Nxh2 {[%emt 0:04:09]} 42. a4 {[%emt 0:00:11]} Ng4 {[%emt 0:01:39]} 43. a5 {[%emt 0:00:05]} Nf6 {[%emt 0:01:37]} 44. c4 {[%emt 0:00:05]} Ne8 {[%emt 0:02:42]} 45. a6 {[%emt 0:00:31]} Nc7 {[%emt 0:05:14]} 46. a7 {[%emt 0:00:04]} h5 {[%emt 0:04:33]} 47. Ke4 {[%emt 0:00:15]} g6 {[%emt 0:01:55]} 48. c5 {[%emt 0:00:17]} dxc5 {[%emt 0:04:05]} 49. Bxc5 {[%emt 0:00:05]} h4 {[%emt 0:06:13]} 50. Kxe5 {[%emt 0:00:07]} Na8 {[%emt 0:02:40]} 51. Kf6 {[%emt 0:00:11]} 1-0

[Event "FIDE WYCC Girls U18 2023"]
[Site "Montesilvano"]
[Date "2023.11.15"]
[Round "3.18"]
[White "Skarbarchuk, Tetyana"]
[Black "Tsapaki, Asimenia"]
[Result "1-0"]
[ECO "E11"]
[WhiteElo "2010"]
[BlackElo "1702"]
[Annotator "NA"]
[PlyCount "91"]
[EventDate "2023.11.13"]
[EventType "swiss"]
[EventCountry "ITA"]
[SourceTitle "playchess.com"]
[Source "ChessBase"]
[SourceQuality "1"]
[TimeControl "40/5400+30:1800+30"]

1. d4 {[%emt 0:00:04]} Nf6 {[%emt 0:00:06]} 2. c4 {[%emt 0:00:08]} e6 {[%emt 0:00:05]} 3. Nf3 {[%emt 0:00:11]} Bb4+ {[%emt 0:00:07]} 4. Nbd2 {[%emt 0:00:17]} b6 {[%emt 0:00:10]} 5. e3 {[%emt 0:03:53]} c5 {[%emt 0:04:12]} 6. Bd3 {[%emt 0:10:28]} Bb7 {[%emt 0:00:23]} 7. O-O {[%emt 0:01:20]} Bxd2 {[%emt 0:01:12]} 8. Bxd2 {[%emt 0:02:17]} O-O {[%emt 0:00:32]} 9. dxc5 {[%emt 0:19:08]} bxc5 {[%emt 0:00:14]} 10. Bc3 {[%emt 0:00:06]} Ne4 {[%emt 0:03:49]} 11. Bxe4 {[%emt 0:02:00]} Bxe4 {[%emt 0:01:34]} 12. Qd6 {[%emt 0:01:09]} Bxf3 {[%emt 0:06:04]} 13. gxf3 {[%emt 0:06:08]} Qg5+ {[%emt 0:03:17]} 14. Kh1 {[%emt 0:00:15]} Qf5 {[%emt 0:00:23]} 15. Qg3 {[%emt 0:04:18]} g6 {[%emt 0:03:29]} 16. e4 {[%emt 0:07:29]} Qh5 {[%emt 0:00:46]} 17. Bf6 {[%emt 0:02:27]} d5 {[%emt 0:09:34]} 18. cxd5 {[%emt 0:03:35]} exd5 {[%emt 0:00:11]} 19. exd5 {[%emt 0:01:24]} Qxd5 {[%emt 0:00:30]} 20. Rfd1 {[%emt 0:01:43]} Qf5 {[%emt 0:00:39]} 21. Rd6 {[%emt 0:03:03]} Nd7 {[%emt 0:04:52]} 22. Bc3 {[%emt 0:00:38]} Rfe8 {[%emt 0:06:59]} 23. Kg2 {[%emt 0:06:42]} Nb6 {[%emt 0:04:09]} 24. Rad1 {[%emt 0:13:19]} Nc4 {[%emt 0:13:43]} 25. R6d3 {[%emt 0:00:07]} Nb6 {[%emt 0:05:46]} 26. Qh4 {[%emt 0:03:13]} h5 {[%emt 0:16:23]} 27. Rd6 {[%emt 0:01:27]} Rac8 {[%emt 0:02:52]} 28. Rf6 {[%emt 0:00:35]} Qc2 {[%emt 0:00:29]} 29. Rxf7 {[%emt 0:01:53]} Qxc3 {[%emt 0:05:34]} 30. bxc3 {[%emt 0:00:05]} Kxf7 {[%emt 0:00:03]} 31. Qf4+ {[%emt 0:00:10]} Kg7 {[%emt 0:00:16]} 32. Rd6 {[%emt 0:00:12]} Rg8 {[%emt 0:00:49]} 33. Re6 {[%emt 0:04:18]} Kh7 {[%emt 0:02:11]} 34. Re7+ {[%emt 0:00:24]} Rg7 {[%emt 0:00:15]} 35. Qe5 {[%emt 0:00:11]} Rxe7 {[%emt 0:01:10]} 36. Qxe7+ {[%emt 0:00:06]} Kh6 {[%emt 0:00:06]} 37. Qxa7 {[%emt 0:01:11]} Nd5 {[%emt 0:00:53]} 38. Qd7 {[%emt 0:01:02]} Nf4+ {[%emt 0:00:24]} 39. Kf1 {[%emt 0:00:53]} Rb8 {[%emt 0:00:09]} 40. Qd1 {[%emt 0:00:00]} Kg5 {[%emt 0:00:00]} 41. Qc1 {[%emt 0:03:22]} c4 {[%emt 0:02:32]} 42. h4+ {[%emt 0:02:29]} Kf5 {[%emt 0:00:09]} 43. Qe1 {[%emt 0:00:51]} g5 {[%emt 0:06:35]} 44. Qe4+ {[%emt 0:00:16]} Kf6 {[%emt 0:00:37]} 45. hxg5+ {[%emt 0:00:05]} Kxg5 {[%emt 0:00:09]} 46. Qe5+ {[%emt 0:00:07]} 1-0

[Event "FIDE WYCC Girls U18 2023"]
[Site "Montesilvano"]
[Date "2023.11.15"]
[Round "3.19"]
[White "Largo, Franchesca"]
[Black "Barwinska, Ewa"]
[Result "1-0"]
[ECO "B23"]
[WhiteElo "1658"]
[BlackElo "1974"]
[Annotator "NA"]
[PlyCount "93"]
[EventDate "2023.11.13"]
[EventType "swiss"]
[EventCountry "ITA"]
[SourceTitle "playchess.com"]
[Source "ChessBase"]
[SourceQuality "1"]
[TimeControl "40/5400+30:1800+30"]

1. e4 {[%emt 0:00:10]} c5 {[%emt 0:00:06]} 2. Nc3 {[%emt 0:00:10]} a6 {[%emt 0:00:07]} 3. a4 {[%emt 0:00:44]} e6 {[%emt 0:04:43]} 4. d4 {[%emt 0:07:02]} cxd4 {[%emt 0:01:33]} 5. Qxd4 {[%emt 0:00:05]} Nc6 {[%emt 0:01:24]} 6. Qd2 {[%emt 0:00:32]} Bb4 {[%emt 0:01:38]} 7. Nf3 {[%emt 0:05:01]} Nf6 {[%emt 0:02:39]} 8. Bd3 {[%emt 0:00:19]} d5 {[%emt 0:05:07]} 9. exd5 {[%emt 0:00:33]} Nxd5 {[%emt 0:03:28]} 10. O-O {[%emt 0:02:26]} Qa5 {[%emt 0:07:24]} 11. Rb1 {[%emt 0:15:12]} Nxc3 {[%emt 0:03:57]} 12. bxc3 {[%emt 0:00:07]} Bxc3 {[%emt 0:00:13]} 13. Qf4 {[%emt 0:00:18]} O-O {[%emt 0:16:32]} 14. Ba3 {[%emt 0:05:39]} Qd8 {[%emt 0:06:20]} 15. Rfd1 {[%emt 0:16:03]} e5 {[%emt 0:12:32]} 16. Bxh7+ {[%emt 0:00:07]} Kxh7 {[%emt 0:00:39]} 17. Rxd8 {[%emt 0:00:08]} exf4 {[%emt 0:01:34]} 18. Rxf8 {[%emt 0:00:07]} b5 {[%emt 0:00:31]} 19. Bc5 {[%emt 0:04:32]} Kg6 {[%emt 0:01:19]} 20. h3 {[%emt 0:01:32]} b4 {[%emt 0:02:41]} 21. Rd1 {[%emt 0:01:20]} f6 {[%emt 0:00:10]} 22. Nd4 {[%emt 0:04:25]} Bb7 {[%emt 0:05:48]} 23. Rxa8 {[%emt 0:02:22]} Bxa8 {[%emt 0:00:03]} 24. Ne6 {[%emt 0:00:17]} f3 {[%emt 0:01:45]} 25. g3 {[%emt 0:02:13]} Ne5 {[%emt 0:00:42]} 26. Nf4+ {[%emt 0:01:00]} Kf5 {[%emt 0:00:28]} 27. Nd5 {[%emt 0:00:45]} Bxd5 {[%emt 0:02:51]} 28. Rxd5 {[%emt 0:00:07]} Ke4 {[%emt 0:00:02]} 29. Rd8 {[%emt 0:01:04]} Nc4 {[%emt 0:01:27]} 30. Rb8 {[%emt 0:02:35]} a5 {[%emt 0:00:05]} 31. Bb6 {[%emt 0:00:25]} Be5 {[%emt 0:08:05]} 32. Rb7 {[%emt 0:00:09]} g5 {[%emt 0:00:10]} 33. Bd8 {[%emt 0:00:33]} Kd4 {[%emt 0:01:22]} 34. Rb5 {[%emt 0:04:18]} Kc3 {[%emt 0:01:29]} 35. Bxa5 {[%emt 0:00:05]} Nxa5 {[%emt 0:00:04]} 36. Rxa5 {[%emt 0:00:06]} Kxc2 {[%emt 0:00:05]} 37. Rb5 {[%emt 0:00:08]} b3 {[%emt 0:00:31]} 38. a5 {[%emt 0:00:06]} b2 {[%emt 0:00:24]} 39. a6 {[%emt 0:00:03]} Bd4 {[%emt 0:00:16]} 40. h4 {[%emt 0:00:00]} b1=Q+ {[%emt 0:00:00]} 41. Rxb1 {[%emt 0:00:12]} Kxb1 {[%emt 0:02:14]} 42. h5 {[%emt 0:00:05]} f5 {[%emt 0:00:49]} 43. h6 {[%emt 0:00:05]} g4 {[%emt 0:00:29]} 44. h7 {[%emt 0:00:09]} f4 {[%emt 0:00:02]} 45. Kf1 {[%emt 0:01:03]} fxg3 {[%emt 0:00:31]} 46. fxg3 {[%emt 0:00:19]} Kc2 {[%emt 0:00:06]} 47. a7 {[%emt 0:00:05]} 1-0

[Event "FIDE WYCC Girls U18 2023"]
[Site "Montesilvano"]
[Date "2023.11.15"]
[Round "3.20"]
[White "Blanquet, Camille"]
[Black "Zubova, Darja"]
[Result "1-0"]
[ECO "D26"]
[WhiteElo "1953"]
[BlackElo "1582"]
[Annotator "NA"]
[PlyCount "97"]
[EventDate "2023.11.13"]
[EventType "swiss"]
[EventCountry "ITA"]
[SourceTitle "playchess.com"]
[Source "ChessBase"]
[SourceQuality "1"]
[TimeControl "40/5400+30:1800+30"]

1. d4 {[%emt 0:00:09]} d5 {[%emt 0:00:10]} 2. c4 {[%emt 0:00:08]} dxc4 {[%emt 0:00:16]} 3. Nf3 {[%emt 0:01:12]} Nf6 {[%emt 0:00:24]} 4. e3 {[%emt 0:00:54]} e6 {[%emt 0:00:19]} 5. Bxc4 {[%emt 0:01:16]} c5 {[%emt 0:00:32]} 6. O-O {[%emt 0:03:17]} Nc6 {[%emt 0:01:14]} 7. Qe2 {[%emt 0:03:45]} a6 {[%emt 0:01:31]} 8. Bb3 {[%emt 0:03:55]} b5 {[%emt 0:03:11]} 9. a4 {[%emt 0:03:50]} b4 {[%emt 0:07:23]} 10. Rd1 {[%emt 0:05:49]} Be7 {[%emt 0:05:29]} 11. Nbd2 {[%emt 0:06:05]} Na5 {[%emt 0:08:16]} 12. Bc2 {[%emt 0:05:23]} Bb7 {[%emt 0:04:42]} 13. b3 {[%emt 0:09:50]} O-O {[%emt 0:04:38]} 14. Bb2 {[%emt 0:02:17]} Rc8 {[%emt 0:04:06]} 15. Qd3 {[%emt 0:03:51]} Qc7 {[%emt 0:06:11]} 16. Rac1 {[%emt 0:02:51]} Bxf3 {[%emt 0:05:34]} 17. gxf3 {[%emt 0:07:19]} Qb7 {[%emt 0:06:07]} 18. e4 {[%emt 0:04:38]} g6 {[%emt 0:01:30]} 19. Bb1 {[%emt 0:05:31]} Rfd8 {[%emt 0:05:13]} 20. Qe3 {[%emt 0:00:36]} Nd7 {[%emt 0:02:42]} 21. e5 {[%emt 0:03:38]} Nb6 {[%emt 0:08:20]} 22. Be4 {[%emt 0:02:37]} Nd5 {[%emt 0:00:33]} 23. Qd3 {[%emt 0:03:01]} Qa7 {[%emt 0:02:52]} 24. Nc4 {[%emt 0:01:49]} Nc6 {[%emt 0:02:46]} 25. Nd6 {[%emt 0:02:02]} Bxd6 {[%emt 0:00:37]} 26. exd6 {[%emt 0:00:25]} cxd4 {[%emt 0:03:12]} 27. Bxd5 {[%emt 0:04:49]} exd5 {[%emt 0:00:32]} 28. Bxd4 {[%emt 0:01:10]} Qxd4 {[%emt 0:00:55]} 29. Qxd4 {[%emt 0:01:47]} Nxd4 {[%emt 0:00:06]} 30. Rxc8 {[%emt 0:00:10]} Nxf3+ {[%emt 0:00:52]} 31. Kg2 {[%emt 0:00:18]} Nh4+ {[%emt 0:03:08]} 32. Kh3 {[%emt 0:00:09]} Rxc8 {[%emt 0:00:21]} 33. Kxh4 {[%emt 0:00:07]} f6 {[%emt 0:01:14]} 34. Rxd5 {[%emt 0:01:07]} Kf7 {[%emt 0:00:08]} 35. Rd4 {[%emt 0:02:52]} a5 {[%emt 0:00:08]} 36. Rd5 {[%emt 0:02:11]} Rd8 {[%emt 0:00:10]} 37. f3 {[%emt 0:03:34]} Ke6 {[%emt 0:03:35]} 38. Rxa5 {[%emt 0:00:17]} Rxd6 {[%emt 0:00:09]} 39. Rb5 {[%emt 0:00:19]} Rd4+ {[%emt 0:00:18]} 40. Kg3 {[%emt 0:00:00]} g5 {[%emt 0:00:00]} 41. Rb6+ {[%emt 0:05:17]} Kf5 {[%emt 0:04:22]} 42. Rb5+ {[%emt 0:01:48]} Kg6 {[%emt 0:08:53]} 43. a5 {[%emt 0:00:21]} g4 {[%emt 0:00:50]} 44. a6 {[%emt 0:04:11]} Rd6 {[%emt 0:08:45]} 45. Ra5 {[%emt 0:02:16]} Rd3 {[%emt 0:06:27]} 46. a7 {[%emt 0:01:26]} Rxf3+ {[%emt 0:00:18]} 47. Kxg4 {[%emt 0:00:46]} Rxb3 {[%emt 0:00:52]} 48. a8=Q {[%emt 0:00:18]} Ra3 {[%emt 0:00:58]} 49. Qg8+ {[%emt 0:00:09]} 1-0

[Event "FIDE WYCC Girls U18 2023"]
[Site "Montesilvano"]
[Date "2023.11.15"]
[Round "3.21"]
[White "Oviedo Acosta, Paula"]
[Black "Follana Albelda, Lucia"]
[Result "1-0"]
[ECO "B94"]
[WhiteElo "1639"]
[BlackElo "1946"]
[Annotator "NA"]
[PlyCount "125"]
[EventDate "2023.11.13"]
[EventType "swiss"]
[EventCountry "ITA"]
[SourceTitle "playchess.com"]
[Source "ChessBase"]
[SourceQuality "1"]
[TimeControl "40/5400+30:1800+30"]

1. e4 {[%emt 0:00:04]} c5 {[%emt 0:00:05]} 2. Nf3 {[%emt 0:00:13]} d6 {[%emt 0:00:06]} 3. d4 {[%emt 0:00:10]} cxd4 {[%emt 0:00:06]} 4. Nxd4 {[%emt 0:00:08]} Nf6 {[%emt 0:00:05]} 5. Nc3 {[%emt 0:00:21]} a6 {[%emt 0:00:08]} 6. Bg5 {[%emt 0:00:28]} Nbd7 {[%emt 0:00:05]} 7. g4 {[%emt 0:02:52]} Ne5 {[%emt 0:15:05]} 8. h3 {[%emt 0:05:09]} b5 {[%emt 0:06:36]} 9. f4 {[%emt 0:04:31]} Ng6 {[%emt 0:04:25]} 10. Bg2 {[%emt 0:07:32]} Bb7 11. Bxf6 Nxf4 {[%emt 0:07:22]} 12. Qf3 {[%emt 0:16:08]} Nxg2+ {[%emt 0:00:35]} 13. Qxg2 {[%emt 0:00:08]} gxf6 {[%emt 0:00:31]} 14. O-O-O {[%emt 0:00:08]} Bh6+ {[%emt 0:16:45]} 15. Kb1 {[%emt 0:00:34]} Bf4 {[%emt 0:03:03]} 16. Nce2 {[%emt 0:02:35]} Be5 {[%emt 0:00:19]} 17. Nf5 {[%emt 0:00:56]} Qb6 {[%emt 0:06:25]} 18. g5 {[%emt 0:03:35]} Rg8 {[%emt 0:06:50]} 19. h4 {[%emt 0:00:42]} Rg6 {[%emt 0:06:44]} 20. Rhf1 {[%emt 0:02:43]} e6 {[%emt 0:01:12]} 21. Nh6 {[%emt 0:11:04]} f5 {[%emt 0:01:48]} 22. Ng3 {[%emt 0:03:32]} Rd8 {[%emt 0:03:26]} 23. Qe2 {[%emt 0:07:21]} f4 {[%emt 0:09:23]} 24. Nh5 {[%emt 0:02:44]} Qe3 {[%emt 0:01:57]} 25. Nxf4 {[%emt 0:00:06]} Bxf4 {[%emt 0:00:27]} 26. Qxe3 {[%emt 0:00:06]} Bxe3 {[%emt 0:00:13]} 27. Nxf7 {[%emt 0:00:05]} e5 {[%emt 0:05:16]} 28. Nxd8 {[%emt 0:06:03]} Kxd8 29. Rf6 {[%emt 0:03:57]} Bc5 {[%emt 0:01:13]} 30. Rf5 Ke7 {[%emt 0:01:02]} 31. Re1 {[%emt 0:04:04]} Rg7 {[%emt 0:01:09]} 32. a3 {[%emt 0:00:51]} a5 {[%emt 0:00:22]} 33. Kc1 {[%emt 0:00:51]} Bc8 {[%emt 0:00:41]} 34. Rf6 {[%emt 0:02:00]} Bg4 {[%emt 0:00:28]} 35. Kd2 {[%emt 0:00:48]} Bh5 {[%emt 0:00:29]} 36. c3 {[%emt 0:01:27]} a4 {[%emt 0:00:14]} 37. Rh6 Bg6 {[%emt 0:01:35]} 38. Re2 {[%emt 0:04:46]} Bf7 {[%emt 0:01:11]} 39. Rg2 {[%emt 0:01:50]} Bc4 {[%emt 0:01:21]} 40. h5 {[%emt 0:00:00]} d5 {[%emt 0:00:00]} 41. g6 {[%emt 0:04:47]} hxg6 {[%emt 0:05:08]} 42. Rhxg6 {[%emt 0:03:51]} Rf7 {[%emt 0:01:57]} 43. Rc6 {[%emt 0:03:35]} Bd6 {[%emt 0:05:31]} 44. Ra6 {[%emt 0:02:59]} Kd7 {[%emt 0:03:49]} 45. exd5 {[%emt 0:02:50]} Bxd5 {[%emt 0:00:14]} 46. Rg6 {[%emt 0:00:25]} Be6 {[%emt 0:06:39]} 47. h6 {[%emt 0:01:53]} e4 {[%emt 0:03:00]} 48. Ra7+ {[%emt 0:04:31]} Bc7 {[%emt 0:00:43]} 49. Rxc7+ {[%emt 0:01:17]} Kxc7 {[%emt 0:00:15]} 50. Rxe6 {[%emt 0:00:06]} Rf2+ {[%emt 0:00:42]} 51. Ke3 {[%emt 0:00:09]} Rxb2 {[%emt 0:00:39]} 52. Kxe4 {[%emt 0:00:11]} Rh2 {[%emt 0:00:29]} 53. Kf5 {[%emt 0:00:12]} Rh3 {[%emt 0:01:59]} 54. Kg6 {[%emt 0:03:21]} Kd7 {[%emt 0:05:53]} 55. Re5 {[%emt 0:01:29]} Rxc3 {[%emt 0:01:29]} 56. h7 {[%emt 0:00:07]} Rc8 {[%emt 0:00:07]} 57. Rxb5 {[%emt 0:00:19]} Kc6 {[%emt 0:00:07]} 58. Rb4 {[%emt 0:00:09]} Kc5 {[%emt 0:00:52]} 59. Rxa4 {[%emt 0:00:46]} Kb5 {[%emt 0:00:11]} 60. Rh4 {[%emt 0:00:09]} Rc6+ {[%emt 0:00:15]} 61. Kf7 {[%emt 0:00:35]} Rc7+ {[%emt 0:00:20]} 62. Ke6 {[%emt 0:00:06]} Rc6+ {[%emt 0:00:04]} 63. Kd7 {[%emt 0:00:04]} 1-0

[Event "FIDE WYCC Girls U18 2023"]
[Site "Montesilvano"]
[Date "2023.11.15"]
[Round "3.22"]
[White "Wan, Qian"]
[Black "Sasvatha A"]
[Result "1-0"]
[ECO "D02"]
[WhiteElo "1945"]
[BlackElo "1568"]
[Annotator "NA"]
[PlyCount "125"]
[EventDate "2023.11.13"]
[EventType "swiss"]
[EventCountry "ITA"]
[SourceTitle "playchess.com"]
[Source "ChessBase"]
[SourceQuality "1"]
[TimeControl "40/5400+30:1800+30"]

1. d4 {[%emt 0:00:03]} Nf6 {[%emt 0:00:09]} 2. Nf3 {[%emt 0:00:06]} d5 {[%emt 0:00:07]} 3. Bf4 {[%emt 0:00:04]} c5 {[%emt 0:00:16]} 4. dxc5 {[%emt 0:01:46]} Qa5+ {[%emt 0:01:45]} 5. Nbd2 {[%emt 0:01:21]} Qxc5 {[%emt 0:01:15]} 6. e3 {[%emt 0:00:16]} Nc6 {[%emt 0:00:33]} 7. a3 {[%emt 0:00:43]} a6 {[%emt 0:08:09]} 8. c4 {[%emt 0:04:08]} dxc4 {[%emt 0:06:23]} 9. Nxc4 {[%emt 0:00:31]} b5 {[%emt 0:03:56]} 10. b4 {[%emt 0:01:06]} Qa7 {[%emt 0:05:44]} 11. Nce5 {[%emt 0:00:35]} Bd7 {[%emt 0:07:47]} 12. Nxd7 {[%emt 0:15:00]} Qxd7 {[%emt 0:01:19]} 13. Qxd7+ {[%emt 0:01:11]} Nxd7 {[%emt 0:00:42]} 14. Rc1 {[%emt 0:00:07]} Nd8 {[%emt 0:05:31]} 15. Bd3 {[%emt 0:03:18]} f6 {[%emt 0:05:22]} 16. Be4 {[%emt 0:03:07]} Ra7 {[%emt 0:00:16]} 17. Bc7 {[%emt 0:01:25]} e5 {[%emt 0:05:12]} 18. Ke2 {[%emt 0:00:38]} g6 {[%emt 0:07:55]} 19. Rhd1 {[%emt 0:03:10]} Ne6 {[%emt 0:03:28]} 20. Ba5 {[%emt 0:02:08]} Ke7 {[%emt 0:04:56]} 21. Rc6 {[%emt 0:06:48]} Nb8 {[%emt 0:07:12]} 22. Rc8 {[%emt 0:11:52]} Bg7 {[%emt 0:05:16]} 23. Rxh8 {[%emt 0:00:14]} Bxh8 {[%emt 0:00:11]} 24. g4 {[%emt 0:00:02]} Nd7 {[%emt 0:03:34]} 25. h4 {[%emt 0:01:45]} Ng7 {[%emt 0:05:53]} 26. Bd5 {[%emt 0:03:59]} f5 {[%emt 0:03:39]} 27. gxf5 {[%emt 0:01:25]} Nxf5 {[%emt 0:01:53]} 28. e4 {[%emt 0:11:34]} Ng7 {[%emt 0:02:43]} 29. Ng5 {[%emt 0:01:00]} Nh5 {[%emt 0:00:44]} 30. Nxh7 {[%emt 0:02:36]} Nf4+ {[%emt 0:01:09]} 31. Kf3 {[%emt 0:01:24]} Nxd5 {[%emt 0:00:40]} 32. exd5 {[%emt 0:01:23]} Bf6 {[%emt 0:00:34]} 33. Rg1 {[%emt 0:03:20]} Kf7 {[%emt 0:00:14]} 34. Ng5+ {[%emt 0:00:14]} Bxg5 {[%emt 0:00:06]} 35. hxg5 {[%emt 0:00:05]} Ra8 {[%emt 0:00:36]} 36. Rc1 {[%emt 0:00:17]} Rh8 {[%emt 0:00:23]} 37. Rc7 {[%emt 0:00:04]} Ke7 {[%emt 0:00:10]} 38. Rc6 {[%emt 0:01:00]} Rh3+ {[%emt 0:00:30]} 39. Ke4 {[%emt 0:00:29]} Rh4+ {[%emt 0:00:34]} 40. Ke3 {[%emt 0:00:00]} Rd4 {[%emt 0:00:00]} 41. Re6+ {[%emt 0:02:02]} Kf7 {[%emt 0:02:06]} 42. Rd6 {[%emt 0:02:45]} Nf8 {[%emt 0:03:52]} 43. f3 {[%emt 0:03:58]} Ke7 {[%emt 0:04:25]} 44. Bc7 {[%emt 0:04:29]} Kf7 {[%emt 0:08:21]} 45. Rf6+ {[%emt 0:01:41]} Ke8 {[%emt 0:00:42]} 46. Bxe5 {[%emt 0:00:50]} Rxd5 {[%emt 0:00:07]} 47. Ke4 {[%emt 0:00:49]} Rd1 {[%emt 0:00:16]} 48. Rxa6 {[%emt 0:00:05]} Nd7 {[%emt 0:00:23]} 49. Bd4 {[%emt 0:00:37]} Kf7 {[%emt 0:03:44]} 50. Rd6 {[%emt 0:00:35]} Nf8 {[%emt 0:00:41]} 51. Rf6+ {[%emt 0:02:02]} Ke8 {[%emt 0:00:23]} 52. Bc5 {[%emt 0:02:17]} Re1+ {[%emt 0:00:14]} 53. Kd5 {[%emt 0:00:28]} Rd1+ {[%emt 0:00:45]} 54. Kc6 {[%emt 0:00:32]} Nd7 {[%emt 0:00:07]} 55. Re6+ {[%emt 0:00:07]} Kd8 {[%emt 0:00:09]} 56. Rd6 {[%emt 0:00:27]} Rxd6+ {[%emt 0:00:17]} 57. Bxd6 {[%emt 0:00:07]} Kc8 {[%emt 0:00:09]} 58. Kxb5 {[%emt 0:00:05]} Kb7 {[%emt 0:00:05]} 59. a4 {[%emt 0:00:07]} Nb6 {[%emt 0:00:06]} 60. a5 {[%emt 0:00:06]} Nd5 {[%emt 0:00:04]} 61. a6+ {[%emt 0:00:10]} Ka7 {[%emt 0:00:23]} 62. Bc5+ {[%emt 0:00:15]} Ka8 {[%emt 0:00:13]} 63. Kc6 {[%emt 0:00:06]} 1-0